bitfinex-derivatives/quotes_ETHF0:USTF0_20251003
["timestamp","ask_amount","ask_price","bid_price","bid_amount"]
[1759521587541,0.3168,4519.8,4519.7,0.7235]
[1759521587741,0.3168,4519.8,4519.7,0.75385301]
[1759521588043,0.749,4519.8,4519.7,0.45885301]
[1759521588442,0.2233,4519.8,4519.7,0.75385301]
[1759521588641,0.3168,4519.8,4519.7,1.15182301]
[1759521588841,3.3331,4520.0,4519.8,0.39796]
[1759521589048,3.8732,4520.0,4519.9,0.4285]
[1759521589341,0.6654,4520.0,4519.9,0.7235]
[1759521589942,0.6654,4520.0,4519.9,0.75385301]
[1759521590243,0.3168,4520.4,4520.3,0.2106]
[1759521590447,0.3168,4520.4,4520.3,1.12142]
[1759521590642,0.3168,4520.4,4520.3,0.2179]
[1759521590643,0.749,4520.4,4520.3,0.2179]
[1759521590845,0.749,4520.4,4520.3,0.24825301]
[1759521591051,0.749,4520.4,4520.3,0.27860602]
[1759521591348,0.749,4520.4,4520.3,0.06070602]
[1759521592143,3.2078,4520.6,4520.4,0.39791]
[1759521592346,3.7479,4520.6,4520.5,0.4285]
[1759521593149,3.9568,4520.6,4520.5,0.48920602]
[1759521593451,3.9568,4520.6,4520.5,0.06070602]
[1759521593848,3.9568,4520.6,4520.5,0.27860602]
[1759521594046,0.5401,4520.6,4520.5,0.48920602]
[1759521594243,0.749,4520.6,4520.5,0.48920602]
[1759521594542,0.749,4520.6,4520.5,0.27860602]
[1759521595250,3.9568,4520.6,4520.5,0.06070602]
[1759521595543,0.749,4519.3,4519.2,0.82651]
[1759521595750,0.3168,4519.5,4519.4,0.7564]
[1759521595950,0.8743,4519.5,4519.4,0.4285]
[1759521596244,0.3168,4519.5,4519.4,0.7564]
[1759521596647,0.3168,4519.8,4519.5,0.3279]
[1759521596948,0.3168,4519.8,4519.7,0.7564]
[1759521597151,0.4421,4520.0,4519.9,0.4285]
[1759521597346,0.6654,4520.5,4520.4,0.4285]
[1759521597651,0.8743,4520.5,4520.4,0.4285]
[1759521598053,0.00268496,4520.7,4520.6,0.2179]
[1759521598251,0.749,4521.4,4521.3,0.4285]
[1759521599354,0.7514824,4521.4,4521.0,0.223]
[1759521599545,0.2233,4521.1,4521.0,0.4409]
[1759521599750,0.749,4521.1,4521.0,0.223]
[1759521600150,0.749,4521.1,4521.0,0.4409]
[1759521600352,0.5401,4521.1,4521.0,0.9794]
[1759521600652,0.0024824,4521.4,4521.3,0.7564]
[1759521600653,0.5425824,4521.4,4521.3,0.7564]
[1759521601445,0.7514824,4521.4,4521.3,0.2179]
[1759521601649,0.749,4520.4,4520.3,0.2179]
[1759521601845,0.3168,4520.3,4520.2,0.39793]
[1759521602050,0.3168,4520.3,4520.2,0.61583]
[1759521602051,0.749,4520.3,4520.2,0.61583]
[1759521602257,0.1253,4520.5,4520.4,0.39791]
[1759521602451,0.3429,4520.5,4520.2,0.2185]
[1759521602651,0.2136,4520.4,4520.3,0.39792]
[1759521602953,0.7615,4520.4,4520.3,0.39792]
[1759521603154,0.8925,4520.0,4519.9,0.83945]
[1759521603456,0.3303,4519.9,4519.1,0.223]
[1759521603654,0.7615,4519.9,4519.8,0.2185]
[1759521603853,0.7615,4519.9,4519.8,0.4222]
[1759521604150,3.5381,4521.8,4521.0,0.0937]
[1759521604352,0.7615,4521.4,4521.3,0.4222]
[1759521604548,0.131,4521.0,4520.5,0.3284]
[1759521604859,0.7615,4520.6,4520.5,0.223]
[1759521605357,0.7632825,4520.6,4520.5,0.223]
[1759521605553,0.4613,4520.5,4520.0,3.4308]
[1759521605761,0.7615,4520.1,4520.0,3.6493]
[1759521605956,0.3303,4520.1,4520.0,4.1814]
[1759521606153,0.3303,4520.4,4520.3,0.7506]
[1759521606555,0.4312,4520.1,4520.0,0.4415]
[1759521606858,0.3303,4519.9,4519.3,3.5362]
[1759521607046,0.5439,4519.4,4519.3,3.4263]
[1759521607252,0.3303,4519.4,4519.3,4.1814]
[1759521607558,0.3303,4519.9,4519.3,4.1814]
[1759521610452,0.3303,4519.6,4519.4,0.3284]
[1759521610658,0.7615,4518.9,4518.8,3.2078]
[1759521610965,0.7615,4518.7,4518.6,0.4415]
[1759521611554,0.3303,4518.7,4518.6,0.223]
[1759521613666,0.3303,4518.4,4518.3,0.00271499]
[1759521613865,0.131,4517.5,4517.4,34.507]
[1759521614062,0.131,4517.5,4516.8,3.4308]
[1759521614364,0.3303,4516.4,4515.4,0.3284]
[1759521614565,3.5381,4516.4,4515.4,0.3284]
[1759521614966,3.54073307,4516.4,4515.4,0.33060367]
[1759521615560,3.54073307,4516.4,4515.6,0.3284]
[1759521615766,3.54073307,4516.4,4515.6,0.5514]
[1759521616466,3.21043307,4516.4,4515.6,0.5514]
[1759521617056,0.3303,4516.3,4515.6,0.5514]
[1759521617261,3.21043307,4516.4,4515.6,0.223]
[1759521617457,0.3303,4516.3,4515.6,0.223]
[1759521617865,0.4613,4515.5,4515.4,0.00220367]
[1759521618058,3.2078,4515.9,4515.4,0.33060367]
[1759521618275,0.00263307,4516.4,4515.6,0.03020836]
[1759521618276,0.3303,4516.3,4515.6,0.03020836]
[1759521618464,0.3303,4516.3,4515.7,0.3284]
[1759521618666,0.3303,4516.3,4516.0,3.2078]
[1759521618969,0.3303,4516.3,4516.1,0.3284]
[1759521619166,0.3303,4516.3,4516.2,0.35860836]
[1759521620464,0.3303,4516.3,4516.2,0.03020836]
[1759521621768,0.00263307,4516.4,4516.2,0.35877683]
[1759521621967,0.00263307,4516.4,4516.3,0.5514]
[1759521622872,0.00263307,4516.4,4516.3,0.58177683]
[1759521625574,0.00263307,4516.4,4516.3,5.58177683]
[1759521626775,0.00263307,4516.4,4516.3,6.00397683]
[1759521627775,0.00263307,4516.4,4516.3,1.00397683]
[1759521627977,0.33303307,4516.4,4516.3,1.00397683]
[1759521628275,0.00263307,4516.4,4516.3,1.00397683]
[1759521628672,0.54253307,4516.4,4516.3,0.67557683]
[1759521628978,0.75013307,4516.4,4516.3,0.25337683]
[1759521629275,0.2085,4516.4,4516.3,0.81157683]
[1759521629475,2.37048129,4517.0,4516.4,0.3374]
[1759521629674,2.78658129,4517.0,4516.9,0.2208]
[1759521629878,2.78658129,4517.0,4516.9,0.06075366]
[1759521630074,2.78832024,4517.0,4516.9,0.06075366]
[1759521630472,2.78832024,4517.0,4516.9,0.61895366]
[1759521631978,2.91862024,4517.0,4516.9,0.06075366]
[1759521632580,10.78096464,4517.0,4516.9,0.06075366]
[1759521632880,0.4182,4515.7,4515.6,0.3177]
[1759521633072,0.1304,4515.6,4515.2,0.3177]
[1759521633376,0.1304,4515.6,4514.9,3.4308]
[1759521633377,0.4182,4515.5,4514.9,3.4308]
[1759521633575,0.4182,4515.5,4515.4,0.31990367]
[1759521633776,0.4182,4515.5,4515.4,0.75000367]
[1759521634671,0.4182,4515.5,4515.4,0.52730367]
[1759521635379,0.2096,4515.5,4515.4,0.75000367]
[1759521635972,0.4182,4515.5,4515.4,0.75000367]
[1759521636168,3.2078,4516.0,4515.5,0.4447]
[1759521636374,3.626,4516.0,4515.9,0.5251]
[1759521636881,0.5486,4515.7,4515.6,0.3177]
[1759521637078,0.4182,4515.5,4515.4,0.00220367]
[1759521637978,3.7564,4515.5,4515.4,0.00220367]
[1759521638185,6.56927549,4515.5,4515.4,0.01883139]
[1759521638477,0.1116,4515.4,4514.2,0.3177]
[1759521638683,3.2078,4514.6,4514.0,0.4447]
[1759521638876,3.2078,4514.6,4514.0,0.127]
[1759521639183,3.2078,4514.6,4514.5,0.4447]
[1759521639377,3.2078,4514.6,4514.5,0.44663697]
[1759521640684,3.3194,4514.6,4514.5,0.00193697]
[1759521640972,3.3194,4514.6,4514.5,0.44663697]
[1759521640973,3.2078,4514.6,4514.5,0.44663697]
[1759521641178,3.2078,4514.6,4514.5,0.31963697]
[1759521641375,3.3194,4514.6,4514.5,0.31963697]
[1759521641574,0.224,4514.8,4514.5,0.12893697]
[1759521641772,3.2078,4515.1,4515.0,0.127]
[1759521641974,3.4318,4515.1,4515.0,0.4447]
[1759521642174,6.25023952,4515.1,4515.0,0.4447]
[1759521642680,6.25023952,4515.1,4514.6,0.3177]
[1759521643176,6.02623952,4515.1,4514.6,0.3177]
[1759521643481,6.24923952,4515.1,4514.6,0.3177]
[1759521643676,0.223,4515.0,4514.6,0.3177]
[1759521644078,0.3346,4515.0,4514.5,0.12893697]
[1759521644276,0.1795,4514.6,4514.5,0.65403697]
[1759521644790,0.1795,4514.6,4514.5,0.87673697]
[1759521645279,3.2078,4515.1,4515.0,0.5571]
[1759521645482,3.2078,4515.1,4515.0,0.8748]
[1759521645483,3.5668,4515.1,4515.0,0.8748]
[1759521645673,3.2078,4515.1,4515.0,0.8748]
[1759521646881,3.3873,4515.1,4515.0,0.8748]
[1759521647282,3.5668,4515.1,4515.0,0.6521]
[1759521647474,3.2078,4515.1,4515.0,0.8748]
[1759521648477,3.2078,4515.7,4515.6,0.7478]
[1759521648777,0.224,4516.2,4515.6,0.7478]
[1759521648978,0.68282453,4516.1,4516.0,0.6521]
[1759521649477,3.2078,4516.3,4516.1,0.3177]
[1759521649679,3.2078,4516.9,4516.8,0.7478]
[1759521650271,0.00173895,4517.0,4516.8,0.4301]
[1759521650479,0.00173895,4517.0,4516.9,5.3177]
[1759521651378,3.2078,4518.3,4518.0,0.127]
[1759521651584,3.2078,4518.3,4517.6,0.3177]
[1759521651585,0.1133,4518.2,4517.6,0.3177]
[1759521652480,0.00226608,4518.2,4518.0,0.127]
[1759521652778,0.00226608,4518.2,4518.1,0.3177]
[1759521655480,0.1133,4518.1,4517.6,0.00220875]
[1759521655686,0.00226608,4518.2,4517.7,0.3177]
[1759521655977,0.00226608,4518.2,4517.6,0.00220875]
[1759521656177,0.00226608,4518.2,4517.7,0.3177]
[1759521656379,3.21006608,4518.2,4517.7,0.3177]
[1759521656578,3.21006608,4518.2,4517.6,0.00220875]
[1759521656782,3.21006608,4518.2,4518.0,0.127]
[1759521656985,3.21006608,4518.2,4518.1,0.3177]
[1759521659290,3.39236608,4518.2,4518.1,0.5251]
[1759521659687,3.57466608,4518.2,4518.1,0.5251]
[1759521660694,3.57466608,4518.2,4518.1,0.7478]
[1759521660891,3.21006608,4518.2,4518.1,0.7478]
[1759521661194,0.00226608,4518.2,4518.1,0.7478]
[1759521661697,0.18456608,4518.2,4518.1,0.7478]
[1759521662496,0.36686608,4518.2,4518.1,0.7478]
[1759521662894,0.36686608,4518.2,4518.1,0.5251]
[1759521663198,0.36686608,4518.2,4518.0,0.4488]
[1759521663404,0.48046608,4518.2,4518.0,0.4488]
[1759521664102,0.48046608,4518.2,4518.1,0.3218]
[1759521664599,0.36686608,4518.2,4518.1,0.3218]
[1759521664804,0.36686608,4518.2,4518.1,0.5386]
[1759521666006,0.36686608,4518.2,4517.6,0.22620875]
[1759521666007,0.4772,4517.7,4517.6,0.00220875]
[1759521667396,3.685,4517.7,4517.6,0.00220875]
[1759521667597,11.62340373,4517.7,4517.6,0.00220875]
[1759521668104,11.50980373,4517.7,4516.9,3.2078]
[1759521668304,0.468,4517.0,4516.9,3.2078]
[1759521668500,0.468,4517.0,4516.6,0.3218]
[1759521668698,0.468,4517.0,4516.3,3.2078]
[1759521668895,0.223,4517.4,4516.9,0.7571]
[1759521669200,0.3566,4517.4,4517.3,0.5386]
[1759521669908,0.3566,4517.4,4517.3,0.7571]
[1759521670103,3.2078,4517.7,4517.5,0.1254]
[1759521670402,3.3861,4517.7,4517.6,0.5386]
[1759521670805,3.6758,4517.7,4517.5,0.4472]
[1759521671002,0.1114,4517.6,4517.0,0.4472]
[1759521671305,0.1783,4517.1,4517.0,0.8825]
[1759521671506,2.84221191,4517.5,4517.0,0.8825]
[1759521671707,2.84221191,4517.5,4517.4,0.5386]
[1759521671708,0.4023,4517.5,4517.4,0.5386]
[1759521671908,0.5806,4517.5,4517.4,0.5386]
[1759521672608,0.3566,4517.5,4517.4,0.5386]
[1759521674009,3.2078,4517.7,4517.6,0.4353]
[1759521674207,3.3861,4517.7,4517.6,0.7571]
[1759521674505,3.2078,4517.7,4517.6,0.7571]
[1759521675304,3.3861,4517.7,4517.6,0.7571]
[1759521676508,3.5644,4517.7,4517.6,0.5386]
[1759521676910,3.5644,4517.7,4517.6,0.7571]
[1759521677110,3.3861,4517.7,4517.6,0.7571]
[1759521677312,3.2078,4517.7,4517.6,0.7571]
[1759521678207,0.00226608,4518.2,4518.1,0.7571]
[1759521678913,0.18056608,4518.2,4518.1,0.7571]
[1759521679210,0.35886608,4518.2,4518.1,0.7571]
[1759521681620,0.3566,4517.6,4517.5,0.3218]
[1759521681814,0.2076,4517.1,4517.0,0.1254]
[1759521682008,0.6557,4517.0,4516.5,3.3348]
[1759521682211,1.05391,4517.0,4516.5,3.3348]
[1759521682509,3.72373957,4517.0,4516.0,0.1254]
[1759521682710,3.72373957,4517.0,4516.0,0.3422]
[1759521682711,0.4481,4516.1,4516.0,0.3422]
[1759521682915,0.2252,4515.7,4515.5,0.3484]
[1759521683214,0.2252,4515.7,4515.6,0.2168]
[1759521683215,0.4481,4515.7,4515.6,0.2168]
[1759521683710,0.4481,4515.7,4515.6,0.54130005]
[1759521685001,0.4481,4515.7,4515.6,0.75980005]
[1759521685716,0.2252,4515.7,4515.6,0.75980005]
[1759521685910,3.433,4516.3,4516.2,0.5386]
[1759521686113,3.433,4516.3,4516.2,0.7571]
[1759521686114,3.2078,4516.3,4516.2,0.7571]
[1759521687218,3.414,4516.8,4516.7,0.2124]
[1759521687512,3.2078,4516.8,4516.7,0.7478]
[1759521688215,3.414,4516.8,4516.7,0.7478]
[1759521688612,3.2078,4516.8,4516.7,0.7478]
[1759521688811,3.414,4516.8,4516.7,0.7478]
[1759521689313,3.2078,4516.8,4516.7,0.7478]
[1759521689508,3.2078,4517.3,4516.8,0.39823]
[1759521689715,0.2062,4517.3,4517.2,0.7478]
[1759521689914,0.4302,4517.7,4517.6,0.2124]
[1759521690222,0.2062,4517.7,4517.6,0.5427]
[1759521690518,3.2078,4517.9,4517.8,0.4175]
[1759521690722,3.414,4517.9,4517.8,0.7478]
[1759521690912,0.2062,4517.9,4517.8,0.7478]
[1759521691309,0.2062,4517.9,4517.5,0.1231]
[1759521691310,0.00226608,4518.2,4518.1,0.3303]
[1759521691819,0.20906608,4518.2,4517.6,0.72846]
[1759521692119,0.207,4518.1,4517.8,0.3239]
[1759521692320,0.207,4518.1,4517.7,0.39815]
[1759521692726,0.207,4518.1,4517.5,0.52126]
[1759521693021,0.207,4518.1,4517.6,0.39816]
[1759521693622,0.207,4518.1,4517.7,0.3239]
[1759521693822,0.00226608,4518.2,4517.6,0.39816]
[1759521694017,0.00226608,4518.2,4517.7,0.3239]
[1759521694223,0.00226608,4518.2,4517.8,0.3239]
[1759521694622,0.207,4517.8,4517.2,3.2078]
[1759521694824,0.39822,4517.0,4516.8,1.5784652]
[1759521695115,0.225,4516.9,4515.5,3.3401]
[1759521695318,3.2078,4516.4,4516.1,0.3239]
[1759521695621,0.39828,4516.3,4516.1,0.3239]
[1759521695820,3.28190464,4516.3,4516.1,0.3239]
[1759521696620,3.2078,4516.4,4516.1,0.3239]
[1759521696817,0.226,4516.2,4516.1,0.3239]
[1759521697918,3.2078,4516.4,4516.1,0.3239]
[1759521701124,3.2078,4516.4,4516.3,0.72217]
[1759521701323,3.2078,4516.9,4516.6,0.3239]
[1759521701825,3.2078,4516.9,4516.8,0.4317]
[1759521702021,3.2078,4516.9,4516.8,0.7556]
[1759521703227,3.60602,4516.9,4516.8,0.5386]
[1759521703427,3.2078,4516.9,4516.8,0.5386]
[1759521705328,3.4338,4516.9,4516.8,0.3239]
[1759521709226,3.2078,4516.9,4516.8,0.7556]
[1759521709432,3.4338,4516.9,4516.8,0.7556]
[1759521710728,3.2078,4516.9,4516.8,0.7556]
[1759521713732,3.2078,4516.9,4516.8,1.15383]
[1759521714133,3.2078,4516.9,4516.8,0.7556]
[1759521716337,0.225,4517.0,4516.8,0.4317]
[1759521716533,0.225,4517.0,4516.1,3.5317]
[1759521716740,0.9956,4516.7,4516.0,0.447]
[1759521716937,0.39828,4516.3,4516.1,0.3239]
[1759521717235,0.62329,4516.2,4516.1,0.3239]
[1759521717432,0.62329,4516.2,4515.6,0.32660005]
[1759521717433,0.99573,4516.1,4515.6,0.32660005]
[1759521717737,0.39833,4515.7,4515.6,0.00270005]
[1759521717938,0.62333,4515.7,4515.6,0.00270005]
[1759521718332,0.225,4515.7,4515.6,0.00270005]
[1759521718532,0.225,4515.7,4515.6,0.32660005]
[1759521720437,3.16757898,4515.7,4515.6,0.00270005]
[1759521720636,0.99584,4515.6,4515.0,0.1323]
[1759521720834,3.2078,4515.3,4514.8,0.3239]
[1759521721036,0.39839,4515.0,4514.8,0.3239]
[1759521721236,0.225,4514.9,4514.8,0.3239]
[1759521721638,0.22667424,4514.9,4514.8,0.32671141]
[1759521722035,0.22667424,4514.9,4514.8,0.76491141]
[1759521722438,0.22667424,4514.9,4514.8,0.32671141]
[1759521722831,0.00167424,4514.9,4514.8,0.76791141]
[1759521724640,0.00167424,4514.9,4514.2,0.225]
[1759521724641,0.39847,4514.1,4514.0,0.1276]
[1759521724940,0.39851,4513.6,4513.5,0.1276]
[1759521725138,3.83131,4513.6,4513.5,1e-08]
[1759521725341,11.28883512,4513.6,4513.0,0.1323]
[1759521725542,3.60635,4513.1,4513.0,0.13473859]
[1759521725846,0.3986,4512.6,4512.5,1e-08]
[1759521726039,3.8314,4512.6,4512.5,1e-08]
[1759521726339,6.71207917,4512.6,4512.5,1e-08]
[1759521726540,6.71207917,4512.6,4512.0,0.1276]
[1759521726541,0.39864,4512.2,4512.0,1e-08]
[1759521726740,3.83144,4512.1,4512.0,0.00156147]
[1759521726936,6.71211917,4512.1,4512.0,0.00156147]
[1759521727241,6.08847917,4512.1,4511.6,0.3246]
[1759521727448,3.2078,4512.6,4511.6,0.3246]
[1759521727649,0.225,4512.5,4511.6,0.3246]
[1759521727845,3.11830339,4512.5,4511.6,0.3246]
[1759521728044,3.11830339,4512.5,4511.6,0.32666637]
[1759521728247,0.99677,4511.5,4508.2,3.2078]
[1759521728441,3.2078,4509.6,4509.5,0.13849745]
[1759521728835,2.85004758,4511.4,4509.5,0.13849745]
[1759521728836,3.2078,4510.3,4509.5,0.13849745]
[1759521729246,3.2078,4509.8,4509.5,0.14086828]
[1759521729445,0.39886,4509.6,4509.5,0.14086828]
[1759521729638,3.2078,4509.8,4509.5,0.14086828]
[1759521729841,2.8340918,4509.7,4509.5,0.14086828]
[1759521730039,0.225,4509.6,4509.5,0.14086828]
[1759521730242,0.225,4509.6,4509.5,0.46546828]
[1759521730443,3.16729282,4509.6,4509.5,0.46546828]
[1759521731249,0.3989,4509.3,4507.7,0.115]
[1759521731449,3.2078,4508.2,4507.4,0.18573306]
[1759521731752,3.2078,4508.2,4504.2,1.95378813]
[1759521731753,3.2078,4507.7,4507.5,0.1276]
[1759521731954,0.226,4507.6,4507.5,1e-08]
[1759521732148,0.39907,4507.4,4505.7,0.3992]
[1759521732345,3.2078,4506.4,4505.7,0.00247209]
[1759521732541,3.21030601,4506.4,4505.8,0.3992]
[1759521732746,3.21030601,4506.4,4506.0,0.39918]
[1759521733151,0.00250601,4506.4,4506.2,0.39916]
[1759521733344,0.00250601,4506.4,4506.3,0.3246]
[1759521733546,3.21030601,4506.4,4506.3,0.3246]
[1759521733749,3.21030601,4506.4,4506.3,5.3246]
[1759521734049,3.2078,4506.9,4506.8,0.3246]
[1759521734251,2.6197669,4509.7,4506.8,0.3246]
[1759521734252,3.2078,4507.4,4506.8,0.3246]
[1759521734451,3.4338,4508.1,4507.2,0.3246]
[1759521734756,3.4338,4508.1,4507.3,0.39907]
[1759521734757,3.2078,4507.6,4507.3,0.39907]
[1759521734956,3.20938349,4507.6,4507.5,0.3246]
[1759521735554,0.00158349,4507.6,4507.5,5.3246]
[1759521735757,3.52768349,4507.6,4506.8,0.39911]
[1759521736054,3.52768349,4507.6,4507.0,0.39909]
[1759521736353,3.20938349,4507.6,4507.5,0.3246]
[1759521737241,3.20938349,4507.6,4507.5,0.72365]
[1759521737442,3.20938349,4507.6,4507.5,5.3246]
[1759521738457,0.00158349,4507.6,4507.5,5.5506]
[1759521739648,0.00158349,4507.6,4507.5,0.5506]
[1759521739853,0.00158349,4507.6,4507.5,5.5506]
[1759521740549,3.2078,4508.6,4507.6,0.99761]
[1759521740754,3.2078,4508.6,4507.5,5.5506]
[1759521740755,3.2078,4508.6,4508.5,0.72356]
[1759521740947,3.2078,4508.6,4508.5,0.94956]
[1759521741150,2.71872,4508.6,4508.5,0.94956]
[1759521741351,3.2078,4509.1,4508.8,0.39893]
[1759521741552,3.5261,4509.1,4508.6,0.3246]
[1759521741753,3.20974274,4509.1,4508.5,0.5506]
[1759521741955,3.20974274,4509.1,4508.6,0.3246]
[1759521742258,3.20974274,4509.1,4508.8,0.39893]
[1759521742557,0.3183,4508.9,4507.9,0.3246]
[1759521742753,3.2078,4508.0,4506.9,0.99776]
[1759521742954,3.2078,4508.0,4507.4,0.72365]
[1759521743356,3.3375,4508.0,4507.4,0.3246]
[1759521743554,0.3183,4507.9,4507.0,0.226]
[1759521743756,0.3183,4507.3,4507.0,0.226]
[1759521743956,0.1297,4507.0,4506.4,34.813]
[1759521744158,0.3183,4506.5,4506.4,34.813]
[1759521744357,3.2078,4506.6,4506.1,0.226]
[1759521744558,3.2078,4506.6,4505.0,1.03678255]
[1759521744559,0.3183,4506.4,4505.0,0.03862255]
[1759521744760,3.5261,4505.8,4505.4,0.39923]
[1759521745057,3.52788267,4505.8,4505.1,0.226]
[1759521745252,6.46983045,4505.8,4505.1,0.226]
[1759521745457,6.46983045,4505.8,4504.6,0.72391]
[1759521745654,0.3183,4505.6,4504.3,0.226]
[1759521745858,3.5261,4504.4,4504.3,0.226]
[1759521746263,3.5261,4504.4,4503.9,0.39937]
[1759521746264,0.3183,4504.3,4503.9,0.39937]
[1759521746557,3.2078,4504.4,4503.9,0.39937]
[1759521746558,3.5261,4504.4,4504.1,0.39934]
[1759521746856,3.5261,4505.0,4504.1,0.3246]
[1759521747054,3.2078,4505.0,4504.2,0.3371]
[1759521747358,3.2078,4505.0,4504.8,0.73638]
[1759521747655,3.2078,4505.0,4504.8,0.39928]
[1759521747856,3.2078,4505.0,4504.9,0.3371]
[1759521748662,3.2078,4505.0,4504.3,0.5631]
[1759521748959,3.5528,4505.0,4504.3,0.5631]
[1759521749159,3.5528,4505.0,4504.7,0.3371]
[1759521749358,3.5528,4505.0,4504.5,0.39931]
[1759521749571,3.5528,4505.0,4504.3,0.226]
[1759521749572,0.345,4504.9,4504.8,0.39929]
[1759521749755,3.2078,4505.0,4504.4,0.39932]
[1759521749960,3.5528,4504.5,4504.3,0.226]
[1759521750150,3.2078,4504.5,4504.4,0.3371]
[1759521751259,3.5528,4504.5,4504.3,0.62533]
[1759521751457,0.345,4504.4,4504.3,0.62533]
[1759521751655,0.345,4504.4,4504.3,0.226]
[1759521751850,0.345,4504.4,4504.3,0.5631]
[1759521752057,3.2078,4504.5,4504.4,0.73642]
[1759521752257,3.2078,4505.0,4504.9,0.75918]
[1759521752458,3.2078,4505.0,4504.9,0.98518]
[1759521752656,0.34038267,4505.8,4505.6,0.39921]
[1759521752863,0.00178267,4505.8,4505.7,0.3599]
[1759521754760,3.5464,4506.6,4506.5,0.39914]
[1759521755261,0.226,4507.1,4506.5,0.1385]
[1759521755262,3.5464,4507.1,4506.5,0.1385]
[1759521755458,0.3386,4507.1,4507.0,0.39909]
[1759521755663,0.3386,4507.4,4507.3,0.39907]
[1759521755857,0.0022724,4507.4,4507.3,0.98700301]
[1759521756260,0.3408724,4507.4,4507.3,0.00203301]
[1759521757163,0.0022724,4507.4,4507.3,0.36193301]
[1759521758368,3.2078,4508.2,4508.1,0.399]
[1759521758668,3.2078,4508.2,4508.1,0.9849]
[1759521758969,3.2078,4508.7,4508.6,0.3599]
[1759521759269,3.20937581,4508.7,4508.6,0.5859]
[1759521759662,0.00157581,4508.7,4508.6,0.5859]
[1759521760462,0.00157581,4508.7,4508.6,5.5859]
[1759521761370,3.2078,4509.4,4509.3,0.39889]
[1759521761562,3.2078,4509.4,4509.3,0.98479]
[1759521762465,3.20954599,4509.4,4509.3,0.98479]
[1759521762766,3.2078,4510.0,4509.9,0.75874]
[1759521762968,3.2078,4510.0,4509.9,0.98374]
[1759521763166,3.2078,4510.6,4510.1,0.39881]
[1759521763366,0.3386,4510.4,4510.2,0.39881]
[1759521763662,0.3386,4510.5,4510.0,0.3599]
[1759521763866,0.00157563,4510.5,4510.4,0.3599]
[1759521764064,0.00157563,4510.5,4510.4,0.5849]
[1759521764868,0.3386,4511.4,4510.6,0.3599]
[1759521765267,3.2078,4511.8,4511.2,0.39872]
[1759521765572,0.3386,4511.7,4511.3,0.225]
[1759521765867,0.00251492,4511.7,4511.4,0.3987]
[1759521766068,0.00251492,4511.7,4511.3,0.22718265]
[1759521766267,0.3386,4511.6,4511.3,0.22718265]
[1759521766469,0.00251492,4511.7,4511.3,0.00218265]
[1759521766470,0.3386,4511.4,4511.3,0.00218265]
[1759521766674,0.1445,4511.0,4510.8,0.064]
[1759521766869,0.1445,4511.0,4509.7,3.2078]
[1759521766870,0.3386,4510.8,4510.7,0.064]
[1759521767166,0.3386,4510.8,4509.7,3.2078]
[1759521767167,0.3386,4510.4,4510.2,0.225]
[1759521767373,3.2078,4510.3,4510.2,0.225]
[1759521767672,3.2078,4510.3,4510.2,0.22746861]
[1759521767872,3.5464,4510.3,4510.2,0.22746861]
[1759521768264,3.2078,4510.3,4510.2,0.22746861]
[1759521768472,3.2078,4510.3,4510.2,0.58736861]
[1759521768673,3.5464,4510.8,4510.2,0.58736861]
[1759521768875,3.2078,4510.8,4510.6,0.39878]
[1759521769071,0.3386,4510.7,4510.6,0.75868]
[1759521769268,3.5464,4510.8,4510.6,0.75868]
[1759521769673,3.5464,4510.8,4510.7,0.3599]
[1759521769969,3.2078,4510.8,4510.7,0.3599]
[1759521770169,0.3386,4511.2,4510.7,0.3599]
[1759521770370,3.2078,4511.4,4511.0,0.39874]
[1759521771065,3.2078,4511.4,4510.2,0.00246861]
[1759521771271,0.3386,4510.7,4510.3,0.101]
[1759521771571,3.5464,4510.9,4510.4,0.3599]
[1759521771770,3.2078,4510.9,4510.3,0.101]
[1759521771970,3.5464,4510.9,4510.8,0.39876]
[1759521772569,0.3386,4510.8,4510.5,0.39878]
[1759521773076,3.2078,4510.9,4510.6,0.39877]
[1759521773274,0.3386,4510.8,4510.6,0.39877]
[1759521773574,0.3386,4510.8,4510.3,0.101]
[1759521773764,3.2078,4510.9,4510.3,0.101]
[1759521773969,0.3386,4510.8,4510.7,0.39876]
[1759521775869,3.2078,4510.9,4510.3,0.4609]
[1759521776079,0.1445,4511.0,4510.2,0.00246861]
[1759521776080,0.3386,4510.3,4510.2,0.00246861]
[1759521776265,3.2078,4510.4,4510.3,0.3599]
[1759521776674,3.2078,4510.4,4510.3,5.3599]
[1759521776867,0.3386,4511.2,4510.7,0.99691]
[1759521776868,3.5464,4511.2,4510.7,0.99691]
[1759521777066,3.5464,4511.2,4511.1,0.39873]
[1759521777374,0.3386,4508.9,4507.7,3.5677]
[1759521777569,0.3386,4508.9,4507.7,3.60683]
[1759521777570,0.3386,4508.4,4507.7,3.60683]
[1759521777769,0.3386,4507.9,4507.5,0.225]
[1759521778181,0.34019554,4507.9,4507.5,0.22708996]
[1759521778972,0.34019554,4507.9,4507.5,0.00208996]
[1759521779278,0.3386,4507.6,4507.5,0.00208996]
[1759521782181,0.22659554,4507.9,4507.5,0.73283996]
[1759521782182,0.3373,4507.8,4507.5,0.73283996]
[1759521782378,0.3373,4507.8,4507.5,0.33378996]
[1759521782681,0.3373,4507.8,4507.6,0.73073]
[1759521782879,0.00159554,4507.9,4507.6,0.73073]
[1759521783077,0.3373,4507.8,4507.7,0.39903]
[1759521783378,0.3373,4507.7,4505.4,3.2078]
[1759521783584,0.3373,4507.1,4506.3,3.2078]
[1759521783779,0.3373,4507.1,4506.9,0.3991]
[1759521783985,0.3373,4507.1,4506.5,0.1406]